bitfinex/quotes_BTCUSD_20220226
["timestamp","ask_amount","ask_price","bid_price","bid_amount"]
[1645904841569,0.013164,39314.0,39308.0,0.02558]
[1645904841767,0.013164,39314.0,39309.0,0.20017427]
[1645904841967,0.014164,39314.0,39309.0,0.17502832]
[1645904843074,0.014164,39314.0,39309.0,0.20017427]
[1645904843269,0.014164,39314.0,39309.0,0.20060832]
[1645904843667,0.014164,39314.0,39309.0,0.37282402]
[1645904843869,0.014164,39314.0,39309.0,0.17502832]
[1645904844111,0.014164,39314.0,39309.0,0.17459427]
[1645904844312,0.014164,39314.0,39309.0,0.17502832]
[1645904845111,0.013164,39314.0,39309.0,0.20060832]
[1645904845311,0.013164,39314.0,39309.0,0.20017427]
[1645904845512,0.013164,39314.0,39309.0,0.20060863]
[1645904845912,0.014164,39314.0,39309.0,0.20060863]
[1645904846613,0.001,39314.0,39309.0,0.20017427]
[1645904846812,0.001,39314.0,39309.0,0.09941651]
[1645904847213,0.00011227,39318.0,39309.0,0.09941651]
[1645904847612,0.00011227,39318.0,39309.0,0.27907374]
[1645904847862,0.00011227,39318.0,39309.0,0.27907375]
[1645904847863,0.001,39318.0,39309.0,0.27907375]
[1645904848864,0.001,39318.0,39309.0,0.27863938]
[1645904849064,0.00011227,39317.0,39309.0,0.09941652]
[1645904849265,0.00011227,39319.0,39309.0,0.09941652]
[1645904849864,0.00111227,39319.0,39309.0,0.09941652]
[1645904850069,0.00111227,39319.0,39309.0,0.29431016]
[1645904850264,0.001,39319.0,39309.0,0.29387579]
[1645904850465,0.00011227,39317.0,39309.0,0.29431016]
[1645904850666,0.00011227,39317.0,39309.0,0.09941652]
[1645904851069,0.001,39319.0,39309.0,0.09941652]
[1645904851267,0.00011227,39317.0,39309.0,0.09898215]
[1645904851510,0.00011227,39317.0,39309.0,0.09941652]
[1645904851811,0.00011227,39318.0,39309.0,0.09941652]
[1645904852015,0.0768,39321.0,39309.0,0.09941652]
[1645904852016,0.001,39317.0,39309.0,0.09941652]
[1645904852211,0.00011227,39316.0,39309.0,0.09941652]
[1645904852615,0.00011227,39316.0,39309.0,0.28773411]
[1645904852812,0.00011227,39316.0,39309.0,0.28816847]
[1645904853413,0.0768,39321.0,39315.0,0.21586581]
[1645904853614,0.00011227,39318.0,39315.0,0.21586581]
[1645904853814,0.0768,39321.0,39308.0,0.063633]
[1645904853815,0.30654408,39320.0,39308.0,0.063633]
[1645904854015,0.30654408,39320.0,39309.0,0.00043439]
[1645904854016,0.0509,39319.0,39309.0,0.00043439]
[1645904854213,0.00011227,39314.0,39309.0,0.00043439]
[1645904854921,0.00011227,39314.0,39307.0,0.11732199]
[1645904855117,0.063649,39316.0,39309.0,0.00043436]
[1645904855365,0.00011227,39315.0,39309.0,0.00043436]
[1645904855968,0.00111227,39315.0,39309.0,0.00043436]
[1645904856169,0.00111227,39315.0,39307.0,0.11732199]
[1645904856366,0.00111227,39315.0,39309.0,0.00041135]
[1645904856568,0.001,39315.0,39309.0,0.00041135]
[1645904857371,0.023324,39318.0,39308.0,0.02558]
[1645904857570,0.023324,39318.0,39312.0,0.18123417]
[1645904857571,0.18740854,39318.0,39312.0,0.18123417]
[1645904857776,0.00011227,39317.0,39312.0,0.18123417]
[1645904858077,0.014164,39318.0,39312.0,0.18123417]
[1645904859220,0.013164,39318.0,39312.0,0.18123417]
[1645904859818,0.00011227,39316.0,39312.0,0.18123417]
[1645904860118,0.063644,39315.0,39309.0,0.00041136]
[1645904860817,0.06300002,39315.0,39309.0,0.00041136]
[1645904861119,0.06300002,39315.0,39310.0,0.23162532]
[1645904861524,0.06300002,39315.0,39309.0,0.00038794]
[1645904861920,0.06400002,39315.0,39309.0,0.00038794]
[1645904862120,0.06400002,39315.0,39307.0,0.11732199]
[1645904862320,0.06400002,39315.0,39309.0,0.00038794]
[1645904862522,0.001,39315.0,39309.0,0.00038794]
[1645904862768,0.001,39315.0,39313.0,0.202694]
[1645904863168,0.013164,39318.0,39313.0,0.202694]
[1645904863971,0.015164,39318.0,39313.0,0.202694]
[1645904865173,0.013164,39318.0,39313.0,0.202694]
[1645904865974,0.014164,39318.0,39313.0,0.202694]
[1645904866616,0.001,39318.0,39313.0,0.202694]
[1645904866813,0.063641,39317.0,39313.0,0.202694]
[1645904868013,0.064641,39317.0,39313.0,0.202694]
[1645904868515,0.064641,39317.0,39310.0,0.0016225]
[1645904869113,0.063641,39317.0,39314.0,0.00107755]
[1645904869917,0.064641,39317.0,39314.0,0.00107755]
[1645904871176,0.063641,39317.0,39314.0,0.00107755]
[1645904871978,0.064641,39317.0,39314.0,0.00107755]
[1645904872578,0.064641,39317.0,39315.0,0.17200341]
[1645904872782,0.001,39317.0,39315.0,0.17200341]
[1645904873288,0.00011227,39319.0,39315.0,0.17200341]
[1645904874114,0.00111227,39319.0,39315.0,0.17200341]
[1645904874514,0.00111227,39319.0,39312.0,0.063632]
[1645904875316,0.00011227,39319.0,39312.0,0.063632]
[1645904875515,0.07191127,39321.0,39313.0,0.20354144]
[1645904875918,0.002,39319.0,39313.0,0.20354144]
[1645904877218,0.063635,39321.0,39313.0,0.20354144]
[1645904877876,0.064635,39321.0,39313.0,0.20354144]
[1645904879274,0.063635,39321.0,39313.0,0.20354144]
[1645904879875,0.065635,39321.0,39313.0,0.20354144]
[1645904881275,0.063635,39321.0,39313.0,0.20354144]
[1645904881918,0.065635,39321.0,39313.0,0.20354144]
[1645904883219,0.063635,39321.0,39313.0,0.20354144]
[1645904884020,0.065635,39321.0,39313.0,0.20354144]
[1645904885268,0.063635,39321.0,39313.0,0.20354144]
[1645904886174,0.002,39321.0,39314.0,0.063629]
[1645904886369,0.002,39321.0,39313.0,0.20354144]
[1645904887171,0.0529,39321.0,39313.0,0.20354144]
[1645904887470,0.0529,39321.0,39308.0,0.5049]
[1645904887670,0.0529,39321.0,39309.0,0.00041128]
[1645904887876,0.114537,39321.0,39309.0,0.00041128]
[1645904888074,0.116537,39321.0,39309.0,0.30607903]
[1645904888471,0.116537,39321.0,39313.0,0.22445783]
[1645904888670,0.116537,39321.0,39313.0,0.28808883]
[1645904889128,0.0529,39321.0,39313.0,0.28808883]
[1645904889529,0.0529,39321.0,39314.0,0.30566942]
[1645904889530,0.002,39321.0,39314.0,0.30566942]
[1645904889730,0.18023942,39325.0,39314.0,0.33124942]
[1645904889932,0.001,39321.0,39314.0,0.33124942]
[1645904890129,0.00827627,39325.0,39321.0,0.002]
[1645904890528,0.00827627,39325.0,39324.0,0.17023222]
[1645904891128,0.00827627,39325.0,39321.0,0.06561]
[1645904891329,0.00827627,39325.0,39321.0,0.002]
[1645904892128,0.00927627,39325.0,39321.0,0.002]
[1645904893270,0.00827627,39325.0,39321.0,0.002]
[1645904893869,0.21866587,39324.0,39321.0,0.002]
[1645904895871,0.05039627,39325.0,39321.0,0.002]
[1645904896073,0.001,39324.0,39321.0,0.002]
[1645904897219,0.073787,39327.0,39321.0,0.002]
[1645904897414,0.00041252,39326.0,39321.0,0.002]
[1645904898014,0.00141252,39326.0,39321.0,0.002]
[1645904898216,0.001,39326.0,39321.0,0.002]
[1645904898414,0.00114739,39326.0,39321.0,0.002]
[1645904899420,0.001,39326.0,39321.0,0.002]
[1645904899616,0.00114739,39326.0,39321.0,0.002]
[1645904899815,0.00014739,39326.0,39321.0,0.002]
[1645904900018,0.00114739,39326.0,39321.0,0.002]
[1645904900666,0.001,39326.0,39321.0,0.002]
[1645904900864,0.05204739,39326.0,39321.0,0.002]
[1645904901264,0.05104739,39326.0,39321.0,0.002]
[1645904901866,0.0509,39326.0,39321.0,0.002]
[1645904902066,0.04733415,39326.0,39321.0,0.002]
[1645904902970,0.0469,39326.0,39321.0,0.002]
[1645904903465,0.04633415,39326.0,39321.0,0.002]
[1645904904116,0.04733415,39326.0,39321.0,0.002]
[1645904904316,0.0469,39326.0,39321.0,0.002]
[1645904904516,0.04733415,39326.0,39321.0,0.002]
[1645904905123,0.30194132,39325.0,39321.0,0.002]
[1645904905319,0.29848367,39322.0,39321.0,0.002]
[1645904905519,0.34938367,39322.0,39321.0,0.002]
[1645904906118,0.35038367,39322.0,39321.0,0.002]
[1645904907324,0.34938367,39322.0,39321.0,0.002]
[1645904907766,0.34938367,39322.0,39321.0,0.00132351]
[1645904907967,0.35038367,39322.0,39321.0,0.00132351]
[1645904908367,0.45415367,39322.0,39321.0,0.00132351]
[1645904909168,0.45415367,39322.0,39309.0,1.20269433]
[1645904909369,0.01016,39321.0,39309.0,1.20269433]
[1645904909568,0.0509,39320.0,39309.0,0.73889433]
[1645904909777,0.063651,39318.0,39309.0,0.73889433]
[1645904909973,0.0509,39317.0,39309.0,0.31939433]
[1645904910168,0.0509,39317.0,39309.0,0.31896]
[1645904910369,0.0509,39317.0,39309.0,0.3193943]
[1645904911369,0.0509,39317.0,39309.0,0.31896]
[1645904911615,0.0509,39317.0,39309.0,0.3193943]
[1645904912016,0.06365,39312.0,39309.0,0.3193943]
[1645904912214,0.06365,39312.0,39309.0,0.0105943]
[1645904912215,0.11455,39312.0,39309.0,0.0105943]
[1645904912620,0.11455,39312.0,39309.0,0.01016]
[1645904912817,0.11455,39312.0,39309.0,0.01059429]
[1645904913218,0.17379571,39310.0,39309.0,0.01059429]
[1645904913418,0.0509,39310.0,39309.0,0.01059429]
[1645904913818,0.0509,39310.0,39309.0,0.01016]
[1645904914017,0.0519,39310.0,39309.0,0.01016]
[1645904915269,0.0509,39310.0,39309.0,0.01016]
[1645904916069,0.0519,39310.0,39309.0,0.01016]
[1645904917270,0.0509,39310.0,39309.0,0.01016]
[1645904918070,0.0529,39310.0,39309.0,0.01016]
[1645904918469,0.0529,39310.0,39308.0,0.00041128]
[1645904918669,0.0529,39310.0,39304.0,0.04]
[1645904918870,0.0529,39310.0,39308.0,0.00041128]
[1645904919321,0.0509,39310.0,39308.0,0.00041128]
[1645904919918,0.0509,39310.0,39304.0,0.04]
[1645904920219,0.0519,39310.0,39307.0,0.00041129]
[1645904921017,0.0519,39310.0,39304.0,0.04]
[1645904921218,0.22151766,39310.0,39307.0,0.00038664]
[1645904921419,0.22051766,39310.0,39307.0,0.00038664]
[1645904922118,0.22151766,39310.0,39307.0,0.00038664]
[1645904922318,0.22151766,39310.0,39304.0,0.04]
[1645904923376,0.22051766,39310.0,39304.0,0.04]
[1645904924177,0.22251766,39310.0,39304.0,0.04]
[1645904924779,0.22251766,39310.0,39306.0,0.00863063]
[1645904925181,0.27251766,39310.0,39306.0,0.00863063]
[1645904925379,0.28070966,39310.0,39306.0,0.00863063]
[1645904925584,0.27051766,39310.0,39306.0,0.00863063]
[1645904925780,0.27051766,39310.0,39306.0,0.00820777]
[1645904925979,0.27051766,39310.0,39306.0,0.00863063]
[1645904925980,0.0509,39310.0,39306.0,0.00863063]
[1645904926180,0.1029,39310.0,39306.0,0.00863063]
[1645904927024,0.32781145,39310.0,39306.0,0.00820777]
[1645904927222,0.1029,39310.0,39306.0,0.00863063]
[1645904927422,0.1009,39310.0,39306.0,0.00863063]
[1645904928228,0.1009,39310.0,39306.0,0.00820777]
[1645904928229,0.30336643,39310.0,39306.0,0.00820777]
[1645904929325,0.30236643,39310.0,39306.0,0.00820777]
[1645904929725,0.30236643,39310.0,39306.0,0.00861621]
[1645904929924,0.1009,39310.0,39306.0,0.00861621]
[1645904930125,0.1029,39310.0,39306.0,0.00851889]
[1645904930575,0.1029,39310.0,39306.0,0.00811045]
[1645904930977,0.1991503,39309.0,39306.0,0.00838158]
[1645904931176,0.0509,39308.0,39306.0,0.00838158]
[1645904931777,0.0509,39308.0,39306.0,0.00811045]
[1645904932179,0.0529,39308.0,39306.0,0.00811045]
[1645904932885,0.0529,39308.0,39306.0,0.00797591]
[1645904933482,0.0509,39308.0,39306.0,0.00797591]
[1645904934327,0.116557,39308.0,39306.0,0.00797591]
[1645904935326,0.114557,39308.0,39306.0,0.00797591]
[1645904936127,0.116557,39308.0,39306.0,0.00797591]
[1645904936527,0.31294042,39308.0,39306.0,0.00797591]
[1645904936929,0.116557,39308.0,39306.0,0.00797591]
[1645904937330,0.114557,39308.0,39306.0,0.00797591]
[1645904937971,0.31784211,39308.0,39306.0,0.00797591]
[1645904938173,0.31884211,39308.0,39306.0,0.00797591]
[1645904938371,0.115557,39308.0,39306.0,0.00797591]
[1645904939372,0.80535253,39307.0,39306.0,0.00797591]
[1645904939575,0.85625253,39307.0,39306.0,0.00797591]
[1645904940275,0.85725253,39307.0,39306.0,0.00797591]
[1645904940577,0.85725253,39307.0,39304.0,0.04]
[1645904940578,2.19804535,39307.0,39305.0,0.00043097]
[1645904940773,1.11420723,39306.0,39305.0,0.00043097]
[1645904940972,1.16510723,39306.0,39305.0,0.00043097]
[1645904941624,1.16510723,39306.0,39304.0,0.04043097]
[1645904941825,0.94224408,39305.0,39304.0,0.04043097]
[1645904942025,0.99314408,39305.0,39304.0,0.04043097]
[1645904942625,0.99314408,39305.0,39304.0,0.04]
[1645904942825,0.6866,39305.0,39304.0,0.04]
[1645904944028,0.99314408,39305.0,39304.0,0.04]
[1645904944226,0.99414408,39305.0,39304.0,0.04]
[1645904945470,0.99314408,39305.0,39304.0,0.04]
[1645904945872,0.99224008,39305.0,39304.0,0.04]
[1645904946269,0.99324008,39305.0,39304.0,0.04]
[1645904949132,0.99324008,39305.0,39304.0,0.0395455]
[1645904949533,0.99224008,39305.0,39304.0,0.0395455]
[1645904950128,0.99324008,39305.0,39304.0,0.0395455]
[1645904950729,0.686696,39305.0,39304.0,0.0395455]
[1645904951128,0.686696,39305.0,39304.0,0.0394088]
[1645904951530,0.99324008,39305.0,39304.0,0.0394088]
[1645904951736,0.99224008,39305.0,39304.0,0.0394088]
[1645904952230,0.99324008,39305.0,39304.0,0.0394088]
[1645904953471,0.99224008,39305.0,39304.0,0.0394088]
[1645904954069,1.04224008,39305.0,39304.0,0.0394088]
[1645904954273,1.04324008,39305.0,39304.0,0.0394088]
[1645904954470,1.21520323,39305.0,39304.0,0.0394088]
[1645904955371,1.21420323,39305.0,39304.0,0.0394088]
[1645904956171,1.21520323,39305.0,39304.0,0.0394088]
[1645904957423,1.21420323,39305.0,39304.0,0.0394088]
[1645904958324,1.21520323,39305.0,39304.0,0.0394088]
[1645904959526,0.5,39303.0,39296.0,0.3161]
[1645904959827,0.5,39303.0,39286.0,0.55989798]
[1645904959828,0.6357,39297.0,39286.0,0.55989798]
[1645904960028,0.6357,39297.0,39286.0,0.5288]
[1645904960029,0.6866,39296.0,39286.0,0.5288]
[1645904960482,0.16930129,39293.0,39286.0,0.5288]
[1645904960677,0.0509,39292.0,39286.0,0.5288]
[1645904961277,0.17567848,39291.0,39286.0,0.1285]
[1645904961477,0.0509,39291.0,39286.0,0.1285]
[1645904961678,0.0509,39291.0,39286.0,0.001]
[1645904962077,0.0509,39291.0,39289.0,0.00043055]
[1645904962279,0.3583083,39291.0,39289.0,0.00043055]
[1645904962478,0.0529,39291.0,39289.0,0.00043055]
[1645904963079,0.0529,39291.0,39286.0,0.001]
[1645904963282,0.0529,39291.0,39289.0,0.00043055]
[1645904963479,0.0509,39291.0,39289.0,0.00043055]
[1645904963677,0.22435096,39291.0,39289.0,0.00043055]
[1645904964318,0.063698,39290.0,39286.0,0.001]
[1645904964525,0.063698,39290.0,39289.0,0.00043055]
[1645904964716,0.114598,39290.0,39289.0,0.00043055]
[1645904965117,0.109598,39290.0,39289.0,0.00043055]
[1645904965518,0.109598,39290.0,39286.0,0.001]
[1645904965718,0.4150063,39290.0,39288.0,0.00043056]
[1645904965917,0.3054083,39289.0,39288.0,0.00043056]
[1645904966119,0.3563083,39289.0,39288.0,0.00043056]
[1645904966318,0.9920083,39289.0,39288.0,0.00043056]
[1645904966717,1.19791242,39289.0,39286.0,0.001]
[1645904966917,1.19791242,39289.0,39287.0,0.00043056]
[1645904966918,0.9920083,39289.0,39287.0,0.00043056]
[1645904967125,0.17196315,39288.0,39287.0,0.00043056]
[1645904967323,0.0509,39288.0,39287.0,0.00043056]
[1645904967969,0.0509,39288.0,39286.0,0.001]
[1645904968370,0.0519,39288.0,39286.0,0.001]
[1645904969571,0.0509,39288.0,39286.0,0.001]
[1645904970475,0.00827627,39291.0,39288.0,0.1527]
[1645904970771,0.00827627,39291.0,39289.0,0.3054083]
[1645904971171,0.00827627,39291.0,39290.0,0.23594283]
[1645904971374,0.00827627,39291.0,39290.0,0.54135113]
[1645904971817,0.00327627,39291.0,39290.0,0.54135113]
[1645904972216,0.00527627,39291.0,39290.0,0.54135113]
[1645904973619,0.00327627,39291.0,39290.0,0.54135113]
[1645904974220,0.00627627,39291.0,39290.0,0.54135113]
[1645904974420,0.00627627,39291.0,39290.0,0.78454175]
[1645904974820,6.27e-06,39291.0,39290.0,0.3309883]
[1645904975471,0.073825,39304.0,39290.0,0.3309883]
[1645904976071,0.073825,39304.0,39299.0,0.19789376]
[1645904976271,0.075825,39304.0,39299.0,0.19789376]
[1645904976872,0.090825,39304.0,39299.0,0.19789376]
[1645904977472,0.088825,39304.0,39299.0,0.19789376]
[1645904977674,0.078665,39304.0,39299.0,0.19789376]
[1645904978374,0.080665,39304.0,39299.0,0.19789376]
[1645904979023,0.080665,39304.0,39300.0,0.00040529]
[1645904979223,0.017,39304.0,39300.0,0.00040529]
[1645904979424,0.017,39304.0,39300.0,0.30581359]
[1645904979629,0.015,39304.0,39300.0,0.30581359]
[1645904979822,0.015,39304.0,39300.0,0.3054083]
[1645904980225,0.015,39304.0,39302.0,0.18475014]
[1645904980422,0.015,39304.0,39303.0,0.3054083]
[1645904981421,0.015,39304.0,39302.0,0.00040646]
[1645904982223,0.015,39304.0,39302.0,0.22539975]
[1645904982427,0.015,39304.0,39303.0,0.3054083]
[1645904984474,0.063646,39315.0,39303.0,0.7101993]
[1645904984677,0.18215315,39316.0,39306.0,0.02558]
[1645904984877,0.01016,39323.0,39306.0,0.089215]
[1645904985073,0.48166779,39326.0,39308.0,1.2]
[1645904985074,0.17196315,39325.0,39308.0,1.2]
[1645904985272,0.17196315,39325.0,39310.0,0.02558]
[1645904985476,0.44360613,39326.0,39310.0,0.02558]
[1645904985477,0.17127779,39323.0,39317.0,0.22917784]
[1645904985973,0.5678,39326.0,39317.0,0.22917784]
[1645904986172,0.31830619,39326.0,39317.0,0.22917784]
[1645904986628,0.015,39325.0,39317.0,0.22917784]
[1645904986826,0.063634,39323.0,39317.0,0.22917784]
[1645904987627,0.063634,39323.0,39311.0,0.30246082]
[1645904988033,0.20008675,39322.0,39311.0,0.47606576]
[1645904988230,0.063634,39323.0,39311.0,0.30246082]
[1645904988531,0.063634,39323.0,39313.0,0.23420793]
[1645904988729,0.063634,39323.0,39314.0,0.30291572]
[1645904988930,0.063634,39323.0,39311.0,0.30291572]
[1645904989134,0.17646514,39317.0,39310.0,0.1263]
[1645904989331,0.063647,39315.0,39310.0,0.13646]
[1645904989830,0.063647,39315.0,39309.0,0.00040634]
[1645904990031,0.127293,39319.0,39314.0,0.20878205]
[1645904990878,0.063642,39318.0,39314.0,0.20878205]
[1645904991077,0.22206562,39318.0,39314.0,0.20878205]
[1645904991278,0.063642,39318.0,39314.0,0.20878205]
[1645904992279,0.063642,39318.0,39310.0,0.30291572]
[1645904992883,0.063642,39318.0,39309.0,0.12549514]
[1645904993086,0.063642,39318.0,39310.0,0.30291572]
[1645904993289,0.063642,39318.0,39312.0,0.22596044]
[1645904993681,0.063636,39322.0,39313.0,0.30291572]
[1645904994921,0.063636,39322.0,39312.0,0.22596044]
[1645904996122,0.073825,39322.0,39312.0,0.22596044]
[1645904996323,0.063636,39322.0,39312.0,0.22596044]
[1645904997326,0.015,39325.0,39312.0,0.22596044]
[1645904998180,0.015,39325.0,39321.0,0.17058716]
[1645905000277,0.017,39325.0,39321.0,0.17058716]
[1645905000679,0.0164,39325.0,39321.0,0.17058716]
[1645905001533,0.0164,39325.0,39315.0,0.1248]
[1645905001534,0.21290371,39324.0,39315.0,0.1248]
[1645905001732,0.0144,39325.0,39315.0,0.1248]
[1645905002335,0.0154,39325.0,39315.0,0.1248]
[1645905002540,0.0154,39325.0,39320.0,0.19060708]
[1645905003234,0.0154,39325.0,39315.0,0.1248]
[1645905003638,0.078031,39325.0,39315.0,0.1248]
[1645905003839,0.1700373,39321.0,39315.0,0.1248]
[1645905004036,0.30291572,39320.0,39315.0,0.1248]
[1645905004237,0.0509,39320.0,39312.0,0.4257]
[1645905004438,0.0509,39320.0,39310.0,0.001]
[1645905004637,0.063649,39318.0,39310.0,0.001]
[1645905004836,0.0509,39317.0,39310.0,0.001]
[1645905005036,0.0509,39316.0,39310.0,0.001]
[1645905005576,0.0509,39316.0,39309.0,0.00042719]
[1645905006283,0.42587572,39316.0,39307.0,0.1324]
[1645905006676,0.44027572,39316.0,39309.0,0.00042719]
[1645905007576,0.44027572,39316.0,39304.0,0.4332]
[1645905007779,0.063658,39313.0,39304.0,0.4332]
[1645905007980,0.35381572,39312.0,39300.0,0.1325]
[1645905008884,0.21120719,39311.0,39300.0,0.1325]
[1645905009127,0.35381572,39310.0,39304.0,0.00026877]
[1645905009329,0.0509,39310.0,39304.0,0.00026877]
[1645905009729,0.35381572,39310.0,39304.0,0.00026877]
[1645905009928,0.063662,39309.0,39304.0,0.00026877]
[1645905010129,0.127336,39306.0,39305.0,0.0004274]
[1645905010333,0.56363172,39306.0,39305.0,0.0004274]
[1645905011030,0.78768624,39306.0,39305.0,0.0004274]
[1645905011229,0.78768624,39306.0,39299.0,0.01016]
[1645905011230,0.260716,39306.0,39299.0,0.01016]
[1645905011434,0.13338,39306.0,39304.0,0.00042741]
[1645905011629,0.0509,39306.0,39304.0,0.00042741]
[1645905012530,0.0529,39306.0,39303.0,0.00042741]
[1645905013575,0.0509,39306.0,39302.0,0.18565682]
[1645905013778,0.16404845,39313.0,39303.0,0.00042742]
[1645905013982,0.0509,39312.0,39303.0,0.00042742]
[1645905014378,0.05080044,39312.0,39303.0,0.00042742]
[1645905014877,0.05080044,39312.0,39302.0,0.18565682]
[1645905015079,0.05080044,39312.0,39306.0,0.0004274]
[1645905016080,0.05080044,39312.0,39302.0,0.18565682]
[1645905016281,0.05080044,39312.0,39307.0,0.00042739]
[1645905017331,0.43023472,39311.0,39308.0,0.00042738]
[1645905017529,0.0509,39310.0,39308.0,0.00042738]
[1645905017729,0.30291572,39309.0,39308.0,0.00042738]
[1645905017933,0.41681122,39309.0,39308.0,0.00042738]
[1645905018430,0.41681122,39309.0,39294.0,0.64534256]
[1645905018431,0.114559,39309.0,39300.0,0.22221336]
[1645905018630,0.114559,39309.0,39307.0,0.00042739]
[1645905019730,0.114559,39309.0,39306.0,0.00042739]
[1645905020885,0.114559,39309.0,39294.0,0.64534256]
[1645905021087,0.114559,39309.0,39306.0,0.0004274]
[1645905022086,0.114559,39309.0,39301.0,0.18627638]
[1645905022289,0.114559,39309.0,39306.0,0.0004274]
[1645905023290,0.114559,39309.0,39301.0,0.18627638]
[1645905023492,0.114559,39309.0,39306.0,0.0004274]
[1645905024330,0.114559,39309.0,39301.0,0.18627638]
[1645905024726,0.114559,39309.0,39306.0,0.0004274]
[1645905025727,0.114559,39309.0,39301.0,0.18627638]
[1645905025926,0.114559,39309.0,39306.0,0.0004274]
[1645905026530,0.0509,39309.0,39306.0,0.0004274]
[1645905026932,0.0509,39309.0,39301.0,0.18627638]
[1645905027130,0.0509,39309.0,39307.0,0.20167112]
[1645905027977,0.0509,39309.0,39302.0,0.06365]
[1645905028277,0.0509,39309.0,39306.0,0.00042739]
[1645905029275,0.0509,39309.0,39304.0,0.22343977]
[1645905029479,0.0509,39309.0,39306.0,0.0004274]
[1645905030076,0.25446549,39309.0,39306.0,0.0004274]
[1645905030277,0.0509,39309.0,39306.0,0.0004274]
[1645905030475,0.178225,39309.0,39295.0,0.762008]
[1645905030675,0.178225,39309.0,39306.0,0.00026857]
[1645905031526,0.36483595,39309.0,39306.0,0.00026857]
[1645905032928,0.063662,39308.0,39301.0,0.17864104]
[1645905033129,0.0509,39307.0,39306.0,0.0004272]
[1645905034029,0.0509,39307.0,39301.0,0.17864104]
[1645905034230,0.0509,39307.0,39305.0,0.00042721]
[1645905034832,0.4998,39317.0,39305.0,0.00042721]
[1645905035282,0.4998,39317.0,39302.0,0.26544959]
[1645905035283,0.0144,39316.0,39302.0,0.26544959]
[1645905035582,0.0144,39316.0,39309.0,0.00042718]
[1645905036385,0.0144,39316.0,39308.0,0.18306248]
[1645905036582,0.4998,39317.0,39309.0,0.00042719]
[1645905037188,0.4998,39317.0,39309.0,0.06406519]
[1645905037386,0.063639,39319.0,39309.0,0.06406519]
[1645905037584,0.17200186,39320.0,39309.0,0.063638]
[1645905037785,0.690757,39323.0,39309.0,0.06406519]
[1645905038192,0.86275886,39323.0,39314.0,0.21186528]
[1645905038389,0.690757,39323.0,39314.0,0.21186528]
[1645905038585,0.690757,39323.0,39314.0,0.27549628]
[1645905038586,0.4998,39323.0,39314.0,0.27549628]
[1645905039628,0.4998,39323.0,39314.0,0.45162804]
[1645905039832,0.4998,39323.0,39314.0,0.27543552]
[1645905040433,0.17242889,39326.0,39314.0,0.27543552]
[1645905040631,0.00042703,39326.0,39314.0,0.27543552]
[1645905040831,0.00042703,39326.0,39317.0,0.16214815]
[1645905041031,0.00042703,39326.0,39318.0,0.063622]
[1645905041234,0.23672786,39329.0,39318.0,0.063622]
[1645905041633,0.00040407,39326.0,39316.0,0.127243]
[1645905041835,0.063631,39325.0,39316.0,0.127243]
[1645905042034,0.063631,39325.0,39314.0,0.21186528]
[1645905042236,0.063631,39325.0,39313.0,0.1201]
[1645905042895,0.36654672,39325.0,39313.0,0.1201]
[1645905044094,0.36654672,39325.0,39315.0,0.22258264]
[1645905045595,0.36654672,39325.0,39313.0,0.1201]
[1645905045796,0.41744672,39325.0,39313.0,0.1201]
[1645905046628,0.41744672,39325.0,39315.0,0.18097208]
[1645905047024,0.42763472,39325.0,39315.0,0.18097208]
[1645905047226,0.41744672,39325.0,39315.0,0.18097208]
[1645905047627,0.41744672,39325.0,39313.0,0.1201]
[1645905047825,0.127282,39322.0,39313.0,0.1201]
[1645905048427,0.0509,39321.0,39313.0,0.1201]
[1645905048626,0.0509,39321.0,39313.0,0.1151]
[1645905049226,0.06364,39319.0,39313.0,0.1151]
[1645905049428,0.06364,39319.0,39312.0,0.2205656]
[1645905050774,0.0509,39321.0,39312.0,0.2205656]
[1645905052891,0.0509,39321.0,39313.0,0.063633]
[1645905054140,0.0509,39321.0,39318.0,0.23429418]
[1645905054343,0.00042685,39326.0,39318.0,0.23429418]
[1645905054541,0.063633,39324.0,39318.0,0.23429418]
[1645905054741,0.00042686,39326.0,39318.0,0.23429418]
[1645905055741,0.127264,39328.0,39318.0,0.23429418]
[1645905055941,0.063631,39325.0,39318.0,0.23429418]
[1645905056743,0.00042687,39326.0,39318.0,0.23429418]
[1645905056943,0.127264,39328.0,39318.0,0.23429418]
[1645905057143,0.00042687,39326.0,39318.0,0.23429418]
[1645905058087,0.19805572,39327.0,39317.0,0.063626]
[1645905058285,0.19805572,39327.0,39313.0,0.119]
[1645905058482,0.00042687,39326.0,39315.0,0.063629]
[1645905059282,0.19805572,39327.0,39315.0,0.28783996]
[1645905059681,0.00042686,39326.0,39315.0,0.28783996]
[1645905059881,0.06363,39325.0,39315.0,0.28783996]
[1645905061732,0.7455114,39329.0,39315.0,0.28783996]
[1645905061933,0.00042686,39326.0,39315.0,0.28783996]
[1645905062433,0.00042686,39326.0,39320.0,0.20933683]
[1645905062632,0.00042686,39326.0,39323.0,0.19063979]
[1645905062833,0.17310186,39329.0,39323.0,0.19063979]
[1645905063134,0.0011,39329.0,39323.0,0.19063979]
[1645905063336,0.00042687,39326.0,39323.0,0.19063979]
[1645905064135,0.0011,39329.0,39323.0,0.19063979]
[1645905064334,0.00042687,39326.0,39323.0,0.19063979]
[1645905065382,0.0011,39329.0,39323.0,0.19063979]
[1645905065585,0.00042687,39326.0,39323.0,0.19063979]
[1645905066590,0.0011,39329.0,39323.0,0.19063979]
[1645905066785,0.00042687,39326.0,39323.0,0.19063979]
[1645905067685,0.0011,39329.0,39323.0,0.19063979]
[1645905067898,0.00042687,39326.0,39323.0,0.19063979]
[1645905068885,0.0011,39329.0,39323.0,0.19063979]
[1645905069127,0.00042687,39326.0,39323.0,0.19063979]
[1645905069829,0.00042687,39326.0,39321.0,0.063621]
[1645905070027,0.0011,39329.0,39321.0,0.063621]
[1645905070428,0.00042688,39326.0,39321.0,0.063621]
[1645905071229,0.0011,39329.0,39322.0,0.30291572]
[1645905071435,0.0011,39329.0,39322.0,0.32849572]
[1645905071630,0.00042688,39326.0,39322.0,0.32849572]
[1645905072231,0.00042688,39326.0,39322.0,0.33865572]
[1645905072432,0.0011,39329.0,39322.0,0.33865572]
[1645905072883,0.0011,39329.0,39326.0,0.17035008]